[Event "24th Bosnjaci Open 2019"]
[Site "Bosnjaci"]
[Date "2019.01.06"]
[Round "5.1"]
[White "Zaja, Ivan"]
[Black "Ivekovic, Bozidar"]
[Result "1/2-1/2"]
[ECO "D17"]
[WhiteElo "2458"]
[BlackElo "2398"]
[Annotator "ChessBase"]
[PlyCount "145"]
[EventDate "2019.01.03"]
[EventType "swiss"]
[EventCountry "CRO"]
[SourceTitle "playchess.com"]
[Source "ChessBase"]
[SourceQuality "1"]
[TimeControl "5400+30"]

1. d4 {[%emt 0:00:30]} d5 {[%emt 0:00:30]} 2. c4 {[%emt 0:00:00]} c6 {[%emt 0:00:00]} 3. Nf3 {[%emt 0:00:00]} Nf6 {[%emt 0:00:00]} 4. Nc3 {[%emt 0:00:00]} dxc4 {[%emt 0:00:00]} 5. a4 {[%emt 0:00:00]} Bf5 {[%emt 0:00:00]} 6. Nh4 {[%emt 0:10:30]} Bc8 {[%emt 0:00:30]} 7. Nf3 {[%emt 0:00:00]} Bf5 {[%emt 0:00:00]} 8. Nh4 {[%emt 0:01:00]} Bc8 {[%emt 0:00:00]} 9. e3 {[%emt 0:00:30]} b6 {[%emt 0:34:30]} 10. Bxc4 {[%emt 0:00:30]} Ba6 {[%emt 0:00:00]} 11. Qe2 {[%emt 0:04:30]} Bxc4 {[%emt 0:01:00]} 12. Qxc4 {[%emt 0:00:30]} e6 {[%emt 0:01:30]} 13. Nf3 {[%emt 0:00:30]} Be7 {[%emt 0:01:30]} 14. Ne5 {[%emt 0:06:30]} Qc8 {[%emt 0:05:30]} 15. e4 {[%emt 0:13:30]} Nfd7 {[%emt 0:02:30]} 16. Bf4 {[%emt 0:03:30]} Nxe5 {[%emt 0:07:30]} 17. Bxe5 {[%emt 0:00:00]} O-O {[%emt 0:02:30]} 18. O-O {[%emt 0:07:00]} Qa6 {[%emt 0:00:30]} 19. Qb3 {[%emt 0:00:30]} Nd7 {[%emt 0:03:30]} 20. Bg3 {[%emt 0:01:30]} Rac8 {[%emt 0:05:30]} 21. Rfd1 {[%emt 0:00:30]} Nf6 {[%emt 0:04:30]} 22. Bh4 {[%emt 0:02:30]} Rfe8 {[%emt 0:00:00]} 23. Rac1 {[%emt 0:04:30]} h6 {[%emt 0:02:00]} 24. Rc2 {[%emt 0:03:30]} Qa5 {[%emt 0:01:30]} 25. e5 {[%emt 0:02:30]} Nd5 {[%emt 0:02:30]} 26. Bxe7 {[%emt 0:10:30]} Nxe7 {[%emt 0:00:00]} 27. Ne4 {[%emt 0:00:30]} Qd5 {[%emt 0:05:00]} 28. Qd3 {[%emt 0:00:00]} Red8 {[%emt 0:00:30]} 29. Nd6 {[%emt 0:01:00]} Rc7 {[%emt 0:00:30]} 30. Qc4 {[%emt 0:03:30]} Qxc4 {[%emt 0:01:30]} 31. Rxc4 {[%emt 0:00:30]} Nc8 {[%emt 0:00:30]} 32. Nb5 {[%emt 0:00:30]} Rb7 {[%emt 0:03:17]} 33. Rxc6 {[%emt 0:00:30]} a6 {[%emt 0:00:33]} 34. Rc7 {[%emt 0:05:30]} Rxc7 {[%emt 0:01:28]} 35. Nxc7 {[%emt 0:00:30]} Ne7 {[%emt 0:01:05]} 36. b3 {[%emt 0:03:59]} Rc8 {[%emt 0:04:01]} 37. Nxa6 {[%emt 0:00:52]} Nd5 {[%emt 0:00:05]} 38. b4 {[%emt 0:00:47]} Rc4 {[%emt 0:00:27]} 39. a5 {[%emt 0:02:53]} Nxb4 {[%emt 0:01:47]} 40. Nxb4 {[%emt 0:02:07]} Rxb4 {[%emt 0:00:58]} 41. axb6 {[%emt 0:00:10]} h5 {[%emt 0:00:45]} 42. g3 {[%emt 0:00:30]} Rxb6 {[%emt 0:00:07]} 43. h4 {[%emt 0:00:41]} g6 {[%emt 0:00:33]} 44. Rd3 {[%emt 0:00:02]} Rb2 {[%emt 0:00:41]} 45. Rf3 {[%emt 0:00:30]} Kg7 {[%emt 0:00:34]} 46. Rf4 {[%emt 0:00:30]} Ra2 {[%emt 0:00:17]} 47. Kg2 {[%emt 0:02:13]} Rb2 {[%emt 0:00:07]} 48. Kf3 {[%emt 0:00:42]} Ra2 {[%emt 0:00:16]} 49. g4 {[%emt 0:01:19]} Ra3+ {[%emt 0:00:29]} 50. Ke4 {[%emt 0:01:15]} hxg4 {[%emt 0:00:26]} 51. Rxg4 {[%emt 0:00:03]} Kf8 {[%emt 0:01:05]} 52. h5 {[%emt 0:02:11]} gxh5 {[%emt 0:00:41]} 53. Rh4 {[%emt 0:00:01]} Ra2 {[%emt 0:04:46]} 54. f4 {[%emt 0:01:33]} Re2+ {[%emt 0:01:39]} 55. Kf3 {[%emt 0:00:18]} Re1 {[%emt 0:00:11]} 56. Rxh5 {[%emt 0:00:07]} Ke7 {[%emt 0:00:22]} 57. f5 {[%emt 0:00:44]} exf5 {[%emt 0:01:18]} 58. Rxf5 {[%emt 0:00:04]} Ke6 {[%emt 0:00:25]} 59. Rf6+ {[%emt 0:00:15]} Ke7 {[%emt 0:00:01]} 60. Rb6 {[%emt 0:00:44]} Kd7 {[%emt 0:02:30]} 61. Kf4 {[%emt 0:00:11]} Ke7 {[%emt 0:00:13]} 62. Kf5 {[%emt 0:00:05]} Kd7 {[%emt 0:00:10]} 63. Rb7+ {[%emt 0:01:53]} Ke8 {[%emt 0:00:12]} 64. d5 {[%emt 0:00:19]} Rh1 {[%emt 0:01:19]} 65. d6 {[%emt 0:03:06]} Rf1+ {[%emt 0:00:24]} 66. Ke4 {[%emt 0:00:07]} Re1+ {[%emt 0:00:02]} 67. Kd4 {[%emt 0:00:19]} Rd1+ {[%emt 0:00:13]} 68. Ke3 {[%emt 0:00:57]} f6 {[%emt 0:03:30]} 69. Re7+ {[%emt 0:00:50]} Kd8 {[%emt 0:01:05]} 70. Ke4 {[%emt 0:00:59]} fxe5 {[%emt 0:00:06]} 71. Rxe5 {[%emt 0:00:47]} Rxd6 {[%emt 0:00:07]} 72. Rd5 {[%emt 0:00:02]} Rxd5 {[%emt 0:00:04]} 73. Kxd5 {[%emt 0:00:36]} 1/2-1/2

[Event "24th Bosnjaci Open 2019"]
[Site "Bosnjaci"]
[Date "2019.01.06"]
[Round "5.2"]
[White "Klasan, Vladimir"]
[Black "Fercec, Nenad"]
[Result "0-1"]
[ECO "B90"]
[WhiteElo "2364"]
[BlackElo "2451"]
[Annotator "ChessBase"]
[PlyCount "72"]
[EventDate "2019.01.03"]
[EventType "swiss"]
[EventCountry "CRO"]
[SourceTitle "playchess.com"]
[Source "ChessBase"]
[SourceQuality "1"]
[TimeControl "5400+30"]

1. e4 {[%emt 0:00:30]} c5 {[%emt 0:00:30]} 2. Nf3 {[%emt 0:00:00]} d6 {[%emt 0:00:00]} 3. d4 {[%emt 0:00:00]} Nf6 {[%emt 0:00:00]} 4. Nc3 {[%emt 0:00:30]} cxd4 {[%emt 0:00:00]} 5. Nxd4 {[%emt 0:00:00]} a6 {[%emt 0:00:00]} 6. Qf3 {[%emt 0:00:00]} e6 {[%emt 0:06:30]} 7. g4 {[%emt 0:00:30]} Qc7 {[%emt 0:00:30]} 8. g5 {[%emt 0:02:30]} Nfd7 {[%emt 0:00:30]} 9. Be3 {[%emt 0:01:30]} Ne5 {[%emt 0:03:30]} 10. Qg2 {[%emt 0:10:30]} b5 {[%emt 0:17:30]} 11. a3 {[%emt 0:05:30]} Nbd7 {[%emt 0:01:30]} 12. f4 {[%emt 0:04:30]} Nc4 {[%emt 0:00:00]} 13. Bxc4 {[%emt 0:01:30]} Qxc4 {[%emt 0:00:00]} 14. O-O-O {[%emt 0:04:30]} b4 {[%emt 0:13:30]} 15. axb4 {[%emt 0:04:30]} Qxb4 {[%emt 0:01:30]} 16. Nb3 {[%emt 0:17:30]} Nc5 {[%emt 0:09:30]} 17. Bxc5 {[%emt 0:12:30]} dxc5 {[%emt 0:09:30]} 18. f5 {[%emt 0:02:30]} c4 {[%emt 0:10:30]} 19. Rd4 {[%emt 0:09:30]} Bc5 {[%emt 0:01:30]} 20. Nxc5 {[%emt 0:07:36]} Qxc5 {[%emt 0:00:30]} 21. Rhd1 {[%emt 0:00:10]} O-O {[%emt 0:00:00]} 22. g6 {[%emt 0:06:20]} exf5 {[%emt 0:07:55]} 23. gxh7+ {[%emt 0:01:46]} Kh8 {[%emt 0:02:11]} 24. Nd5 {[%emt 0:01:42]} fxe4 {[%emt 0:03:09]} 25. Qxe4 {[%emt 0:01:14]} Be6 {[%emt 0:01:56]} 26. Rxc4 {[%emt 0:00:29]} Qf2 {[%emt 0:02:17]} 27. Qf4 {[%emt 0:00:54]} Qg2 {[%emt 0:00:56]} 28. Ne3 {[%emt 0:01:02]} Qg6 {[%emt 0:00:28]} 29. Rc5 {[%emt 0:00:35]} Rac8 {[%emt 0:01:02]} 30. Rg5 {[%emt 0:01:28]} Qh6 {[%emt 0:00:04]} 31. Nf5 {[%emt 0:00:57]} Qf6 {[%emt 0:00:13]} 32. h4 {[%emt 0:00:56]} Rc4 {[%emt 0:00:50]} 33. Rd4 {[%emt 0:00:42]} Rfc8 {[%emt 0:02:01]} 34. Rxc4 {[%emt 0:00:08]} Rxc4 {[%emt 0:00:04]} 35. Qd6 {[%emt 0:00:39]} Rxc2+ {[%emt 0:00:35]} 36. Kd1 {[%emt 0:00:29]} Rc8 {[%emt 0:00:20]} 0-1

[Event "24th Bosnjaci Open 2019"]
[Site "Bosnjaci"]
[Date "2019.01.06"]
[Round "5.5"]
[White "Bobanac, Miro"]
[Black "Beletic, Daniel"]
[Result "1/2-1/2"]
[ECO "A21"]
[WhiteElo "2308"]
[BlackElo "2371"]
[Annotator "NA"]
[PlyCount "152"]
[EventDate "2019.01.03"]
[EventType "swiss"]
[EventCountry "CRO"]
[SourceTitle "playchess.com"]
[Source "ChessBase"]
[SourceQuality "1"]
[TimeControl "5400+30"]

1. Nf3 {[%emt 0:00:30]} d6 {[%emt 0:00:30]} 2. c4 {[%emt 0:03:30]} e5 {[%emt 0:00:30]} 3. Nc3 {[%emt 0:00:30]} f5 {[%emt 0:01:30]} 4. e3 {[%emt 0:05:30]} Nf6 {[%emt 0:06:30]} 5. b3 {[%emt 0:02:30]} Be7 {[%emt 0:03:30]} 6. Bb2 {[%emt 0:00:30]} O-O {[%emt 0:00:30]} 7. Qc2 {[%emt 0:04:30]} Nc6 {[%emt 0:21:30]} 8. a3 {[%emt 0:07:30]} Kh8 {[%emt 0:16:30]} 9. h3 {[%emt 0:12:30]} a6 {[%emt 0:35:35]} 10. O-O-O {[%emt 0:13:30]} Ne4 {[%emt 0:02:04]} 11. d4 {[%emt 0:14:30]} Nxc3 {[%emt 0:00:08]} 12. Bxc3 {[%emt 0:00:30]} e4 {[%emt 0:00:38]} 13. d5 {[%emt 0:03:30]} exf3 {[%emt 0:00:03]} 14. dxc6 {[%emt 0:00:30]} bxc6 {[%emt 0:00:56]} 15. gxf3 {[%emt 0:01:30]} Be6 {[%emt 0:00:35]} 16. Rg1 {[%emt 0:03:30]} Bf6 {[%emt 0:00:06]} 17. Bd3 {[%emt 0:02:30]} Rb8 {[%emt 0:00:15]} 18. b4 {[%emt 0:06:15]} a5 {[%emt 0:02:27]} 19. Kd2 {[%emt 0:04:35]} axb4 {[%emt 0:00:12]} 20. axb4 {[%emt 0:00:07]} d5 {[%emt 0:01:05]} 21. cxd5 {[%emt 0:02:40]} Bxd5 {[%emt 0:00:40]} 22. Ke2 {[%emt 0:00:52]} Qe7 {[%emt 0:00:39]} 23. Rb1 {[%emt 0:01:11]} Ra8 {[%emt 0:00:47]} 24. Ra1 {[%emt 0:02:55]} Be5 {[%emt 0:01:36]} 25. Ra5 {[%emt 0:00:34]} Qf6 {[%emt 0:00:47]} 26. Rc1 {[%emt 0:01:40]} Rab8 {[%emt 0:00:29]} 27. b5 {[%emt 0:01:05]} cxb5 {[%emt 0:01:26]} 28. Bxe5 {[%emt 0:00:33]} Qxe5 {[%emt 0:00:03]} 29. Qxc7 {[%emt 0:00:18]} Qb2+ {[%emt 0:00:38]} 30. Rc2 {[%emt 0:00:18]} Qb3 {[%emt 0:01:09]} 31. Ra7 {[%emt 0:01:15]} Rg8 {[%emt 0:00:15]} 32. Qc3 {[%emt 0:00:54]} Qxc3 {[%emt 0:00:43]} 33. Rxc3 {[%emt 0:00:08]} b4 {[%emt 0:01:30]} 34. Rc5 {[%emt 0:00:13]} Rgd8 {[%emt 0:00:28]} 35. Bxf5 {[%emt 0:01:12]} g6 {[%emt 0:00:35]} 36. Bb1 {[%emt 0:01:26]} Rbc8 {[%emt 0:00:25]} 37. Rac7 {[%emt 0:00:44]} Rxc7 {[%emt 0:00:13]} 38. Rxc7 {[%emt 0:00:07]} Bb3 {[%emt 0:00:25]} 39. Bd3 {[%emt 0:00:45]} Rb8 {[%emt 0:01:05]} 40. e4 {[%emt 0:01:29]} Be6 {[%emt 0:00:24]} 41. h4 {[%emt 0:00:19]} b3 {[%emt 0:00:28]} 42. f4 {[%emt 0:00:25]} b2 {[%emt 0:00:22]} 43. Bb1 {[%emt 0:00:10]} Rb3 {[%emt 0:00:33]} 44. f5 {[%emt 0:00:46]} gxf5 {[%emt 0:00:06]} 45. exf5 {[%emt 0:00:08]} Bxf5 {[%emt 0:01:09]} 46. Bxf5 {[%emt 0:00:07]} b1=Q {[%emt 0:00:09]} 47. Bxb1 {[%emt 0:00:09]} Rxb1 {[%emt 0:00:08]} 48. Kf3 {[%emt 0:00:15]} Rb8 {[%emt 0:01:07]} 49. Re7 {[%emt 0:00:24]} Rf8+ {[%emt 0:00:30]} 50. Ke3 {[%emt 0:01:00]} Rf5 {[%emt 0:00:20]} 51. Re4 {[%emt 0:00:34]} Kg7 {[%emt 0:00:28]} 52. Rg4+ {[%emt 0:00:15]} Kh6 {[%emt 0:00:17]} 53. f3 {[%emt 0:01:25]} Ra5 {[%emt 0:00:47]} 54. Kf2 {[%emt 0:00:30]} Ra2+ {[%emt 0:00:28]} 55. Kg3 {[%emt 0:00:05]} Ra1 {[%emt 0:00:04]} 56. Re4 {[%emt 0:00:16]} Rg1+ {[%emt 0:00:36]} 57. Kf4 {[%emt 0:00:09]} Kg6 {[%emt 0:00:49]} 58. Re5 {[%emt 0:00:56]} Ra1 {[%emt 0:00:33]} 59. Rg5+ {[%emt 0:01:31]} Kf6 {[%emt 0:00:13]} 60. Rc5 {[%emt 0:00:49]} Ra4+ {[%emt 0:00:12]} 61. Kg3 {[%emt 0:00:07]} Rb4 {[%emt 0:00:29]} 62. Rc6+ {[%emt 0:00:58]} Kg7 {[%emt 0:00:14]} 63. h5 {[%emt 0:00:21]} Rb1 {[%emt 0:00:38]} 64. h6+ {[%emt 0:00:16]} Kf7 {[%emt 0:00:11]} 65. Kg4 {[%emt 0:00:05]} Rb5 {[%emt 0:01:45]} 66. f4 {[%emt 0:00:10]} Ra5 {[%emt 0:00:29]} 67. Rd6 {[%emt 0:01:35]} Rb5 {[%emt 0:00:08]} 68. Ra6 {[%emt 0:00:09]} Rc5 {[%emt 0:00:07]} 69. f5 {[%emt 0:00:35]} Rc1 {[%emt 0:00:16]} 70. Ra7+ {[%emt 0:01:01]} Kf6 {[%emt 0:00:05]} 71. Rxh7 {[%emt 0:00:24]} Rg1+ {[%emt 0:00:21]} 72. Kf4 {[%emt 0:00:43]} Rf1+ {[%emt 0:00:11]} 73. Ke4 {[%emt 0:00:16]} Rxf5 {[%emt 0:01:23]} 74. Ra7 {[%emt 0:00:42]} Rh5 {[%emt 0:00:16]} 75. Ra6+ {[%emt 0:00:13]} Kf7 {[%emt 0:00:07]} 76. Kf4 {[%emt 0:00:13]} Rh1 {[%emt 0:00:33]} 1/2-1/2

[Event "24th Bosnjaci Open 2019"]
[Site "Bosnjaci"]
[Date "2019.01.06"]
[Round "5.7"]
[White "Ascic, Anto"]
[Black "Zufic, Miroslav"]
[Result "0-1"]
[ECO "D35"]
[WhiteElo "2093"]
[BlackElo "2389"]
[Annotator "NA"]
[PlyCount "99"]
[EventDate "2019.01.03"]
[EventType "swiss"]
[EventCountry "CRO"]
[SourceTitle "playchess.com"]
[Source "ChessBase"]
[SourceQuality "1"]
[TimeControl "5400+30"]

1. d4 {[%emt 0:01:30]} Nf6 {[%emt 0:00:30]} 2. c4 {[%emt 0:00:30]} e6 {[%emt 0:00:00]} 3. Nf3 {[%emt 0:00:00]} d5 {[%emt 0:00:00]} 4. Nc3 {[%emt 0:00:00]} Nbd7 {[%emt 0:00:30]} 5. cxd5 {[%emt 0:00:30]} exd5 {[%emt 0:00:30]} 6. Bg5 {[%emt 0:00:30]} c6 {[%emt 0:01:30]} 7. e3 {[%emt 0:00:30]} Be7 {[%emt 0:00:00]} 8. Bd3 {[%emt 0:00:00]} Nh5 {[%emt 0:00:00]} 9. Bxe7 {[%emt 0:00:00]} Qxe7 {[%emt 0:00:30]} 10. O-O {[%emt 0:00:30]} Nhf6 {[%emt 0:00:00]} 11. Qc2 {[%emt 0:02:30]} O-O {[%emt 0:00:00]} 12. Rfe1 {[%emt 0:01:30]} Re8 {[%emt 0:06:30]} 13. e4 {[%emt 0:02:30]} dxe4 {[%emt 0:04:30]} 14. Nxe4 {[%emt 0:01:30]} Qd8 {[%emt 0:02:30]} 15. Nfg5 {[%emt 0:17:30]} Nxe4 {[%emt 0:06:30]} 16. Nxe4 {[%emt 0:07:30]} Nf8 {[%emt 0:02:30]} 17. Rad1 {[%emt 0:04:30]} Bf5 {[%emt 0:07:30]} 18. Nc3 {[%emt 0:09:30]} Rxe1+ {[%emt 0:05:30]} 19. Rxe1 {[%emt 0:00:30]} Be6 {[%emt 0:02:30]} 20. Rd1 {[%emt 0:12:30]} Qa5 {[%emt 0:06:30]} 21. b3 {[%emt 0:06:30]} Rd8 {[%emt 0:10:30]} 22. h3 {[%emt 0:04:30]} h6 {[%emt 0:15:30]} 23. Be4 {[%emt 0:08:20]} Bd5 {[%emt 0:06:30]} 24. Bxd5 {[%emt 0:05:03]} cxd5 {[%emt 0:00:00]} 25. Ne2 {[%emt 0:02:35]} Ne6 {[%emt 0:00:00]} 26. Qd2 {[%emt 0:02:32]} Qc7 {[%emt 0:05:32]} 27. Rc1 {[%emt 0:00:38]} Qd6 {[%emt 0:00:14]} 28. g3 {[%emt 0:01:38]} Ng5 {[%emt 0:01:58]} 29. Kg2 {[%emt 0:00:42]} Qe6 {[%emt 0:00:17]} 30. Nf4 {[%emt 0:01:51]} Qe4+ {[%emt 0:00:40]} 31. Kf1 {[%emt 0:00:10]} Qh1+ {[%emt 0:03:17]} 32. Ke2 {[%emt 0:01:01]} Qf3+ {[%emt 0:00:53]} 33. Kf1 {[%emt 0:00:16]} Re8 {[%emt 0:05:53]} 34. Ng2 {[%emt 0:00:37]} Ne4 {[%emt 0:00:20]} 35. Qf4 {[%emt 0:00:57]} Qd3+ {[%emt 0:00:41]} 36. Kg1 {[%emt 0:00:10]} Qxd4 {[%emt 0:01:49]} 37. Rc7 {[%emt 0:01:36]} Qa1+ {[%emt 0:04:54]} 38. Kh2 {[%emt 0:01:16]} Rf8 {[%emt 0:00:52]} 39. Ne3 {[%emt 0:02:10]} Qxa2 {[%emt 0:00:51]} 40. Nxd5 {[%emt 0:02:04]} Qxf2+ {[%emt 0:00:37]} 41. Qxf2 {[%emt 0:00:08]} Nxf2 {[%emt 0:00:03]} 42. Rxb7 {[%emt 0:00:15]} a5 {[%emt 0:00:16]} 43. Ne7+ {[%emt 0:00:43]} Kh7 {[%emt 0:00:23]} 44. Nc6 {[%emt 0:00:05]} Ne4 {[%emt 0:01:16]} 45. Nxa5 {[%emt 0:00:24]} Rd8 {[%emt 0:00:14]} 46. Nc4 {[%emt 0:01:07]} Rd3 {[%emt 0:00:45]} 47. Rxf7 {[%emt 0:01:19]} Rxb3 {[%emt 0:00:28]} 48. g4 {[%emt 0:00:31]} Rc3 {[%emt 0:00:27]} 49. Ne5 {[%emt 0:00:29]} Rc2+ {[%emt 0:00:36]} 50. Kg1 {[%emt 0:01:23]} 0-1

[Event "24th Bosnjaci Open 2019"]
[Site "Bosnjaci"]
[Date "2019.01.06"]
[Round "5.8"]
[White "Muratovic, Efim"]
[Black "Boban, Sten"]
[Result "1-0"]
[ECO "D52"]
[WhiteElo "2389"]
[BlackElo "2105"]
[Annotator "NA"]
[PlyCount "77"]
[EventDate "2019.01.03"]
[EventType "swiss"]
[EventCountry "CRO"]
[SourceTitle "playchess.com"]
[Source "ChessBase"]
[SourceQuality "1"]
[TimeControl "5400+30"]

1. d4 {[%emt 0:00:30]} d5 {[%emt 0:00:30]} 2. c4 {[%emt 0:00:00]} e6 {[%emt 0:00:30]} 3. Nf3 {[%emt 0:00:00]} Nf6 {[%emt 0:00:30]} 4. Nc3 {[%emt 0:00:30]} Nbd7 {[%emt 0:00:30]} 5. cxd5 {[%emt 0:01:30]} exd5 {[%emt 0:00:00]} 6. Bg5 {[%emt 0:01:30]} c6 {[%emt 0:06:00]} 7. e3 {[%emt 0:00:30]} Qa5 {[%emt 0:02:30]} 8. Nd2 {[%emt 0:00:30]} Bb4 {[%emt 0:02:30]} 9. Qc2 {[%emt 0:00:30]} Ne4 {[%emt 0:05:30]} 10. Ndxe4 {[%emt 0:06:30]} dxe4 {[%emt 0:02:30]} 11. Bh4 {[%emt 0:00:30]} O-O {[%emt 0:00:30]} 12. Be2 {[%emt 0:01:30]} f5 {[%emt 0:05:30]} 13. O-O {[%emt 0:03:30]} Nf6 {[%emt 0:13:30]} 14. Qb3+ {[%emt 0:14:30]} Nd5 {[%emt 0:12:30]} 15. Nxd5 {[%emt 0:01:30]} cxd5 {[%emt 0:00:30]} 16. Bg3 {[%emt 0:00:00]} Rf7 {[%emt 0:12:30]} 17. Rac1 {[%emt 0:13:00]} Be6 {[%emt 0:00:30]} 18. a3 {[%emt 0:00:30]} Bf8 {[%emt 0:00:30]} 19. Rc3 {[%emt 0:09:30]} Qd8 {[%emt 0:02:30]} 20. Rfc1 {[%emt 0:09:30]} Bd6 {[%emt 0:01:30]} 21. Bxd6 {[%emt 0:06:30]} Qxd6 {[%emt 0:00:30]} 22. g3 {[%emt 0:00:30]} g5 {[%emt 0:00:30]} 23. Qb4 {[%emt 0:07:30]} Qb8 {[%emt 0:02:30]} 24. Qb5 {[%emt 0:02:54]} f4 {[%emt 0:02:30]} 25. Bh5 {[%emt 0:00:20]} Rg7 {[%emt 0:03:30]} 26. Rc5 {[%emt 0:04:13]} Qd8 {[%emt 0:00:30]} 27. Bd1 {[%emt 0:01:29]} Qd6 {[%emt 0:03:28]} 28. Bb3 {[%emt 0:02:10]} Rd8 {[%emt 0:00:22]} 29. Qb4 {[%emt 0:01:58]} h5 {[%emt 0:04:33]} 30. R5c2 {[%emt 0:04:03]} Qb8 {[%emt 0:07:44]} 31. Qa5 {[%emt 0:00:25]} Kh7 {[%emt 0:01:54]} 32. Rc7 {[%emt 0:00:55]} b6 {[%emt 0:00:49]} 33. Rxg7+ {[%emt 0:00:49]} Kxg7 {[%emt 0:00:05]} 34. Qb4 {[%emt 0:00:10]} Kf6 {[%emt 0:01:22]} 35. Rc6 {[%emt 0:01:27]} Rc8 {[%emt 0:00:13]} 36. Bxd5 {[%emt 0:00:34]} Rxc6 {[%emt 0:00:35]} 37. Bxc6 {[%emt 0:00:06]} Qc7 {[%emt 0:00:32]} 38. Qf8+ {[%emt 0:02:18]} Kg6 {[%emt 0:00:52]} 39. Bxe4+ {[%emt 0:00:09]} 1-0

[Event "24th Bosnjaci Open 2019"]
[Site "Bosnjaci"]
[Date "2019.01.06"]
[Round "5.9"]
[White "Stocko, Josip"]
[Black "Tomas, Ante"]
[Result "1-0"]
[ECO "C44"]
[WhiteElo "2282"]
[BlackElo "2102"]
[Annotator "NA"]
[PlyCount "60"]
[EventDate "2019.01.03"]
[EventType "swiss"]
[EventCountry "CRO"]
[SourceTitle "playchess.com"]
[Source "ChessBase"]
[SourceQuality "1"]
[TimeControl "5400+30"]

1. e4 {[%emt 0:00:30]} e5 {[%emt 0:01:30]} 2. Nf3 {[%emt 0:00:00]} Nc6 {[%emt 0:00:30]} 3. d3 {[%emt 0:03:00]} Nf6 {[%emt 0:02:30]} 4. Be2 {[%emt 0:03:30]} Bc5 {[%emt 0:04:30]} 5. O-O {[%emt 0:00:30]} d6 {[%emt 0:03:30]} 6. c3 {[%emt 0:02:30]} a5 {[%emt 0:04:30]} 7. b3 {[%emt 0:01:30]} O-O {[%emt 0:01:30]} 8. h3 {[%emt 0:06:30]} Re8 {[%emt 0:02:30]} 9. a3 {[%emt 0:06:30]} Ba7 {[%emt 0:02:30]} 10. Re1 {[%emt 0:05:30]} d5 {[%emt 0:10:30]} 11. Nbd2 {[%emt 0:03:30]} h6 {[%emt 0:11:30]} 12. Rb1 {[%emt 0:02:30]} d4 {[%emt 0:12:30]} 13. c4 {[%emt 0:10:30]} Bc5 {[%emt 0:00:30]} 14. Nf1 {[%emt 0:01:30]} Bf8 {[%emt 0:05:30]} 15. Ng3 {[%emt 0:00:30]} g6 {[%emt 0:00:30]} 16. Rf1 {[%emt 0:02:30]} Be6 {[%emt 0:13:30]} 17. Ne1 {[%emt 0:01:30]} g5 {[%emt 0:01:56]} 18. Nf3 {[%emt 0:06:30]} Qd6 {[%emt 0:04:32]} 19. Nh2 {[%emt 0:00:30]} Ne7 {[%emt 0:00:45]} 20. Ng4 {[%emt 0:02:30]} Nxg4 {[%emt 0:00:58]} 21. hxg4 {[%emt 0:02:30]} Reb8 {[%emt 0:05:32]} 22. Bf3 {[%emt 0:06:30]} f6 {[%emt 0:01:21]} 23. Nf5 {[%emt 0:00:30]} Nxf5 {[%emt 0:00:59]} 24. exf5 {[%emt 0:01:30]} Bd7 {[%emt 0:00:48]} 25. b4 {[%emt 0:01:30]} axb4 {[%emt 0:01:36]} 26. axb4 {[%emt 0:00:30]} Bc6 {[%emt 0:02:08]} 27. b5 {[%emt 0:02:30]} Bxf3 {[%emt 0:02:21]} 28. Qxf3 {[%emt 0:00:30]} b6 {[%emt 0:02:26]} 29. Bd2 {[%emt 0:00:30]} Ra4 {[%emt 0:00:32]} 30. Ra1 {[%emt 0:05:30]} Rba8 {[%emt 0:01:05]} 1-0

[Event "24th Bosnjaci Open 2019"]
[Site "Bosnjaci"]
[Date "2019.01.06"]
[Round "5.10"]
[White "Ivekovic, Tihana"]
[Black "Goric, Esad"]
[Result "1/2-1/2"]
[ECO "A56"]
[WhiteElo "2071"]
[BlackElo "2260"]
[Annotator "NA"]
[PlyCount "91"]
[EventDate "2019.01.03"]
[EventType "swiss"]
[EventCountry "CRO"]
[SourceTitle "playchess.com"]
[Source "ChessBase"]
[SourceQuality "1"]
[TimeControl "5400+30"]

1. d4 {[%emt 0:00:30]} c5 {[%emt 0:00:30]} 2. d5 {[%emt 0:00:30]} e5 {[%emt 0:00:00]} 3. c4 {[%emt 0:00:30]} d6 {[%emt 0:00:00]} 4. e4 {[%emt 0:00:30]} Nf6 {[%emt 0:00:30]} 5. Nc3 {[%emt 0:00:30]} Be7 {[%emt 0:00:00]} 6. Nf3 {[%emt 0:00:30]} O-O {[%emt 0:00:00]} 7. Be2 {[%emt 0:00:00]} Nbd7 {[%emt 0:00:30]} 8. O-O {[%emt 0:00:00]} Re8 {[%emt 0:00:00]} 9. Ne1 {[%emt 0:00:00]} Nf8 {[%emt 0:00:00]} 10. Nd3 {[%emt 0:00:00]} Ng6 {[%emt 0:00:30]} 11. Be3 {[%emt 0:00:30]} h6 {[%emt 0:00:30]} 12. Rb1 {[%emt 0:01:30]} Bd7 {[%emt 0:00:30]} 13. b4 {[%emt 0:00:00]} b6 {[%emt 0:00:00]} 14. bxc5 {[%emt 0:00:00]} bxc5 {[%emt 0:00:00]} 15. Rb3 {[%emt 0:10:30]} Qc7 {[%emt 0:00:30]} 16. Qc2 {[%emt 0:00:30]} Reb8 {[%emt 0:00:30]} 17. Rfb1 {[%emt 0:00:30]} Be8 {[%emt 0:02:30]} 18. Bd2 {[%emt 0:05:30]} Bd8 {[%emt 0:01:30]} 19. Qb2 {[%emt 0:07:30]} Rxb3 {[%emt 0:04:30]} 20. Qxb3 {[%emt 0:00:30]} Bd7 {[%emt 0:00:30]} 21. g3 {[%emt 0:03:30]} Bc8 {[%emt 0:02:30]} 22. f3 {[%emt 0:05:30]} Qe7 {[%emt 0:01:30]} 23. Qa4 {[%emt 0:00:30]} Bb7 {[%emt 0:06:30]} 24. Nb5 {[%emt 0:07:30]} Bb6 {[%emt 0:03:30]} 25. Qb3 {[%emt 0:00:00]} Ba6 {[%emt 0:04:30]} 26. Kg2 {[%emt 0:03:00]} Ne8 {[%emt 0:00:30]} 27. Qa4 {[%emt 0:00:30]} Bb7 {[%emt 0:01:30]} 28. Qb3 {[%emt 0:00:30]} Bc8 {[%emt 0:00:30]} 29. Nc3 {[%emt 0:07:30]} Rb8 {[%emt 0:07:30]} 30. Bd1 {[%emt 0:00:30]} f5 {[%emt 0:08:30]} 31. exf5 {[%emt 0:07:30]} Bxf5 {[%emt 0:00:30]} 32. Ne4 {[%emt 0:00:00]} Bd7 {[%emt 0:04:30]} 33. Ndf2 {[%emt 0:01:00]} Qd8 {[%emt 0:00:30]} 34. Qd3 {[%emt 0:02:30]} Nf8 {[%emt 0:00:30]} 35. Bc2 {[%emt 0:01:30]} Bc7 {[%emt 0:00:30]} 36. h4 {[%emt 0:08:30]} Rxb1 {[%emt 0:01:30]} 37. Bxb1 {[%emt 0:00:30]} Ba5 {[%emt 0:02:30]} 38. Bc1 {[%emt 0:04:30]} Be1 {[%emt 0:01:30]} 39. Nd1 {[%emt 0:05:02]} Ba5 {[%emt 0:03:30]} 40. Ndf2 {[%emt 0:00:09]} Qb8 {[%emt 0:02:30]} 41. Bc2 {[%emt 0:00:20]} Bd8 {[%emt 0:01:30]} 42. Ng4 {[%emt 0:00:47]} Qc8 {[%emt 0:00:30]} 43. Ngf2 {[%emt 0:01:50]} Be7 {[%emt 0:03:30]} 44. Qa3 {[%emt 0:04:12]} Qb7 {[%emt 0:00:30]} 45. Qd3 {[%emt 0:01:56]} Qc8 {[%emt 0:04:30]} 46. Qa3 {[%emt 0:00:05]} 1/2-1/2